bitfinex/quotes_BTCUSD_20250723
["timestamp","ask_amount","ask_price","bid_price","bid_amount"]
[1753312218495,0.04001386,118830.0,118820.0,0.88436343]
[1753312218706,0.04001386,118830.0,118820.0,1.26699369]
[1753312219316,0.04001386,118830.0,118820.0,0.88436343]
[1753312219524,0.04001386,118830.0,118820.0,1.26699369]
[1753312224354,0.04001386,118830.0,118820.0,0.88436343]
[1753312224621,0.04001386,118830.0,118820.0,1.26699369]
[1753312230427,0.04001386,118830.0,118820.0,1.13799369]
[1753312230626,0.04001386,118830.0,118820.0,1.26703369]
[1753312233228,0.04001386,118830.0,118820.0,1.13799369]
[1753312233461,0.04001386,118830.0,118820.0,1.26699369]
[1753312234091,0.04001386,118830.0,118820.0,1.26695369]
[1753312235401,0.04001386,118830.0,118820.0,1.13799369]
[1753312235614,0.04001386,118830.0,118820.0,1.26695369]
[1753312237098,0.04001386,118830.0,118820.0,0.88432343]
[1753312237328,0.04001386,118830.0,118820.0,1.26695369]
[1753312238213,0.00841386,118830.0,118820.0,1.26695369]
[1753312244110,0.00841386,118830.0,118820.0,1.13799369]
[1753312244271,0.00841386,118830.0,118820.0,1.26695369]
[1753312252763,0.00841386,118830.0,118820.0,1.26782369]
[1753312254262,0.00841386,118830.0,118820.0,0.88519343]
[1753312254496,0.00841386,118830.0,118820.0,1.26782369]
[1753312259702,0.00626386,118830.0,118820.0,1.26782369]
[1753312260345,0.00626386,118830.0,118820.0,1.25782369]
[1753312260944,0.00626386,118830.0,118820.0,1.26623928]
[1753312261115,0.00828386,118830.0,118820.0,1.26623928]
[1753312265501,0.00828386,118830.0,118820.0,1.26619928]
[1753312267211,0.00828386,118830.0,118820.0,1.13727928]
[1753312267379,0.00828386,118830.0,118820.0,1.24149471]
[1753312267930,0.00828386,118830.0,118820.0,1.11257471]
[1753312268242,0.00828386,118830.0,118820.0,1.24149471]
[1753312269175,0.00626386,118830.0,118820.0,1.24149471]
[1753312269435,0.00312386,118830.0,118820.0,1.27249471]
[1753312269934,0.00312386,118830.0,118820.0,1.24149471]
[1753312270172,0.00625386,118830.0,118820.0,1.24149471]
[1753312270391,0.00625386,118830.0,118820.0,1.26670602]
[1753312272116,0.00823386,118830.0,118820.0,1.26670602]
[1753312273601,0.00625386,118830.0,118820.0,1.26670602]
[1753312273818,0.00625386,118830.0,118820.0,0.88407576]
[1753312274024,0.00625386,118830.0,118820.0,1.26670602]
[1753312274697,0.00625386,118830.0,118820.0,0.88407576]
[1753312274899,0.00625386,118830.0,118820.0,1.26670602]
[1753312275909,0.00312386,118830.0,118820.0,1.26670602]
[1753312276272,0.00312386,118830.0,118820.0,1.28330602]
[1753312276885,0.00625386,118830.0,118820.0,1.26670602]
[1753312283616,0.00625386,118830.0,118820.0,0.88407576]
[1753312283830,0.00625386,118830.0,118820.0,1.26670602]
[1753312285237,0.00823386,118830.0,118820.0,1.26670602]
[1753312286352,0.00823386,118830.0,118820.0,0.88407576]
[1753312286584,0.00823386,118830.0,118820.0,1.26670602]
[1753312287313,0.00823386,118830.0,118820.0,0.88407576]
[1753312287486,0.00823386,118830.0,118820.0,1.26670602]
[1753312292312,0.00625386,118830.0,118820.0,1.26670602]
[1753312295886,0.00625386,118830.0,118820.0,0.88407576]
[1753312296198,0.00625386,118830.0,118820.0,1.26670602]
[1753312297586,0.00625386,118830.0,118820.0,0.88407576]
[1753312297826,0.00625386,118830.0,118820.0,1.26670602]
[1753312298036,0.00625386,118830.0,118820.0,0.88407576]
[1753312298253,0.00625386,118830.0,118820.0,1.26670602]
[1753312299122,0.00625386,118830.0,118820.0,1.21670602]
[1753312299810,0.00625386,118830.0,118820.0,1.23353784]
[1753312306413,0.00312386,118830.0,118820.0,1.26533784]
[1753312307728,0.00312386,118830.0,118820.0,1.6479681]
[1753312308176,0.00312386,118830.0,118820.0,1.26533784]
[1753312309503,0.00312386,118830.0,118820.0,1.6479681]
[1753312310228,0.00312386,118830.0,118820.0,0.88270758]
[1753312310435,0.00312386,118830.0,118820.0,1.26533784]
[1753312316754,0.00312386,118830.0,118820.0,1.24983784]
[1753312316961,0.00312386,118830.0,118820.0,1.26613784]
[1753312320653,0.00610386,118830.0,118820.0,1.23353784]
[1753312321907,0.00312386,118830.0,118820.0,1.23353784]
[1753312322060,0.00312386,118830.0,118820.0,1.24933784]
[1753312322746,0.00312386,118830.0,118820.0,1.23353784]
[1753312322937,0.00610386,118830.0,118820.0,1.23353784]
[1753312323870,0.00312386,118830.0,118820.0,1.23353784]
[1753312325161,0.00635386,118830.0,118820.0,1.23353784]
[1753312332245,0.00312386,118830.0,118820.0,1.26553784]
[1753312332453,0.00312386,118830.0,118820.0,1.24032653]
[1753312334823,0.00635386,118830.0,118820.0,1.20832653]
[1753312335355,0.00635386,118830.0,118820.0,0.86832653]
[1753312335841,0.00635386,118830.0,118820.0,1.20832653]
[1753312339564,0.00312386,118830.0,118820.0,1.64781013]
[1753312340241,0.00312386,118830.0,118820.0,1.26517987]
[1753312342491,0.00312386,118830.0,118820.0,1.64835013]
[1753312345720,0.00312386,118830.0,118820.0,1.64781013]
[1753312346533,0.00312386,118830.0,118820.0,1.94641013]
[1753312347121,0.00312386,118830.0,118820.0,1.94695013]
[1753312348978,0.00312386,118830.0,118820.0,1.94641013]
[1753312350892,0.00312386,118830.0,118820.0,1.18114961]
[1753312351099,0.00312386,118830.0,118820.0,1.94641013]
[1753312351316,0.00312386,118830.0,118820.0,1.18114961]
[1753312351527,0.00312386,118830.0,118820.0,1.94641013]
[1753312351951,0.00312386,118830.0,118820.0,1.94637013]
[1753312354534,0.00312386,118830.0,118820.0,1.81765013]
[1753312354712,0.00312386,118830.0,118820.0,1.94637013]
[1753312356216,0.00312386,118830.0,118820.0,1.94691013]
[1753312357787,0.00312386,118830.0,118820.0,1.94637013]
[1753312366209,0.00312386,118830.0,118820.0,1.94691013]
[1753312366830,0.00312386,118830.0,118820.0,1.94637013]
[1753312380935,0.0002,118840.0,118830.0,1.79005605]
[1753312381194,0.0002,118840.0,118830.0,1.65219309]
[1753312382567,0.0002,118840.0,118830.0,1.65319309]
[1753312383650,0.0002,118840.0,118830.0,1.52447309]
[1753312383885,0.0002,118840.0,118830.0,1.65315309]
[1753312385041,0.0002,118840.0,118830.0,1.95175309]
[1753312386085,0.0002,118840.0,118830.0,1.92105309]
[1753312387200,0.0002,118840.0,118830.0,1.02711257]
[1753312387419,0.0002,118840.0,118830.0,1.92105309]
[1753312389778,0.00344,118840.0,118830.0,1.92105309]
[1753312394324,0.0002,118840.0,118830.0,1.92105309]
[1753312394535,0.0002,118840.0,118830.0,1.93665309]
[1753312395788,0.0002,118840.0,118830.0,1.92105309]
[1753312396021,0.00344,118840.0,118830.0,1.92105309]
[1753312406024,0.00344,118840.0,118830.0,1.15579257]
[1753312406203,0.00344,118840.0,118830.0,1.92105309]
[1753312409571,0.00344,118840.0,118830.0,1.15579257]
[1753312409780,0.00344,118840.0,118830.0,1.92105309]
[1753312414895,0.0002,118840.0,118830.0,1.92105309]
[1753312415142,0.0002,118840.0,118830.0,1.95275309]
[1753312424361,0.0002,118840.0,118830.0,1.18749257]
[1753312424584,0.0002,118840.0,118830.0,1.95275309]
[1753312424996,0.0002,118840.0,118830.0,1.92105309]
[1753312425606,0.0062086,118850.0,118830.0,1.93512268]
[1753312425814,0.0062086,118850.0,118840.0,0.83520836]
[1753312426037,0.0062086,118850.0,118840.0,0.8339747]
[1753312426244,0.0082686,118850.0,118840.0,0.8339747]
[1753312426494,0.0082686,118850.0,118840.0,0.8331047]
[1753312427654,0.0092686,118850.0,118840.0,0.8331047]
[1753312428319,0.0246686,118850.0,118840.0,0.8331047]
[1753312428715,0.0256686,118850.0,118840.0,0.8331047]
[1753312429679,0.0256086,118850.0,118840.0,0.8331047]
[1753312430324,0.0256086,118850.0,118840.0,0.84142277]
[1753312431470,0.0102086,118850.0,118840.0,0.84142277]
[1753312432721,0.0268086,118850.0,118840.0,0.84142277]
[1753312437813,0.0268086,118850.0,118840.0,0.8331047]
[1753312440067,0.0102086,118850.0,118840.0,0.8331047]
[1753312440902,0.0102086,118850.0,118840.0,0.8339747]
[1753312442151,0.0102086,118850.0,118840.0,0.8331047]
[1753312442996,0.0102086,118850.0,118840.0,0.8339747]
[1753312443844,0.0082086,118850.0,118840.0,0.8339747]
[1753312444136,0.0082086,118850.0,118840.0,0.45134444]
[1753312444385,0.0082086,118850.0,118840.0,0.45047444]
[1753312444596,0.0082086,118850.0,118840.0,0.8331047]
[1753312445021,0.0082086,118850.0,118840.0,0.8341047]
[1753312445645,0.0082086,118850.0,118840.0,0.45147444]
[1753312445861,0.0397086,118850.0,118840.0,0.8341047]
[1753312446303,0.0397086,118850.0,118840.0,0.45147444]
[1753312446519,0.0397086,118850.0,118840.0,0.8341047]
[1753312453146,0.0397086,118850.0,118840.0,0.79028422]
[1753312453366,0.0397086,118850.0,118840.0,0.8341047]
[1753312453601,0.0397086,118850.0,118840.0,0.79028422]
[1753312453792,0.0397086,118850.0,118840.0,0.8341047]
[1753312454383,0.0397086,118850.0,118840.0,0.7054647]
[1753312454596,0.0397086,118850.0,118840.0,0.85618628]
[1753312454788,0.0397086,118850.0,118840.0,1.11025654]
[1753312465807,0.1682686,118850.0,118840.0,1.11025654]
[1753312473119,0.1682686,118850.0,118840.0,0.72762628]
[1753312473354,0.1682686,118850.0,118840.0,1.11025654]
[1753312474546,0.1682686,118850.0,118840.0,0.71921211]
[1753312474748,0.1682686,118850.0,118840.0,0.72762628]
[1753312474940,0.1682686,118850.0,118840.0,1.11025654]
[1753312479383,0.1682686,118850.0,118840.0,0.72762628]
[1753312479627,0.1682686,118850.0,118840.0,1.11025654]
[1753312484126,0.1682686,118850.0,118840.0,0.72762628]
[1753312484568,0.1682686,118850.0,118840.0,1.11025654]
[1753312488616,0.1682686,118850.0,118840.0,0.72762628]
[1753312488849,0.1682686,118850.0,118840.0,1.11025654]
[1753312490207,0.1682686,118850.0,118840.0,0.77025654]
[1753312490910,0.1682686,118850.0,118840.0,0.38762628]
[1753312491126,0.1682686,118850.0,118840.0,0.77025654]
[1753312492391,0.1682686,118850.0,118840.0,0.38762628]
[1753312492599,0.1682686,118850.0,118840.0,0.77025654]
[1753312496491,0.1682686,118850.0,118840.0,0.38762628]
[1753312496699,0.1682686,118850.0,118840.0,0.77025654]
[1753312497129,0.1682686,118850.0,118840.0,0.38762628]
[1753312497332,0.1682686,118850.0,118840.0,0.77025654]
[1753312499921,0.1682686,118850.0,118840.0,0.38762628]
[1753312500537,0.1682686,118850.0,118840.0,0.77025654]
[1753312501317,0.1682686,118850.0,118840.0,0.38762628]
[1753312501546,0.1682686,118850.0,118840.0,0.77025654]
[1753312501752,0.1682686,118850.0,118840.0,0.38762628]
[1753312502788,0.35337481,118850.0,118840.0,0.31794261]
[1753312502997,0.81046622,118850.0,118840.0,0.001]
[1753312503210,0.81046622,118850.0,118840.0,0.04834282]
[1753312503421,0.81046622,118850.0,118840.0,0.001]
[1753312503627,1.36046622,118850.0,118840.0,0.001]
[1753312503841,1.28600591,118850.0,118840.0,0.001]
[1753312504972,1.28588591,118850.0,118840.0,0.001]
[1753312505406,0.2167222,118840.0,118830.0,0.0911633]
[1753312505613,0.60990671,118840.0,118830.0,0.1756406]
[1753312505812,0.61284671,118840.0,118830.0,0.1756406]
[1753312506074,0.60443268,118840.0,118830.0,0.1756406]
[1753312506592,0.60443268,118840.0,118830.0,0.13182012]
[1753312506817,0.60443268,118840.0,118830.0,0.1756406]
[1753312507027,0.60443268,118840.0,118830.0,0.1766406]
[1753312507436,0.59601843,118840.0,118830.0,0.1766406]
[1753312507888,0.59601843,118840.0,118830.0,0.13273782]
[1753312508119,0.59601843,118840.0,118830.0,0.1765583]
[1753312508589,0.59601843,118840.0,118830.0,0.13273782]
[1753312508803,0.59601843,118840.0,118830.0,0.1765583]
[1753312509705,0.59601843,118840.0,118830.0,0.13273782]
[1753312510008,0.666319,118840.0,118830.0,0.1765583]
[1753312510102,0.59601843,118840.0,118830.0,0.1765583]
[1753312510334,0.59601843,118840.0,118830.0,0.13273782]
[1753312511305,0.58760376,118840.0,118830.0,0.13273782]
[1753312511522,0.58760376,118840.0,118830.0,0.04826052]
[1753312511742,0.67208106,118840.0,118830.0,0.04826052]
[1753312512792,1.07208106,118840.0,118830.0,0.04826052]
[1753312513002,1.07208106,118840.0,118830.0,0.22398356]
[1753312513003,0.62180263,118840.0,118830.0,0.22398356]
[1753312513213,1.13287289,118840.0,118830.0,0.04726052]
[1753312513423,1.13387289,118840.0,118830.0,0.04726052]
[1753312513844,1.12545843,118840.0,118830.0,0.04726052]
[1753312514252,1.20993573,118840.0,118830.0,0.04726052]
[1753312516898,0.82730547,118840.0,118830.0,0.04726052]
[1753312517341,1.20993573,118840.0,118830.0,0.04726052]
[1753312518179,1.29857573,118840.0,118830.0,0.091081]
[1753312518381,1.20993573,118840.0,118830.0,0.091081]
[1753312518591,1.20993573,118840.0,118830.0,0.04726052]
[1753312521634,0.82730547,118840.0,118830.0,0.04726052]
[1753312521818,1.20993573,118840.0,118830.0,0.04726052]
[1753312522027,0.80993573,118840.0,118830.0,0.04726052]
[1753312522340,0.34282817,118840.0,118830.0,0.21556818]
[1753312522512,0.72545843,118840.0,118830.0,0.22398349]
[1753312522709,0.72545843,118840.0,118830.0,0.23239873]
[1753312522911,0.72545843,118840.0,118830.0,0.24081383]
[1753312523159,0.72545843,118840.0,118830.0,0.2408139]
[1753312523710,0.72545843,118840.0,118830.0,0.249229]
[1753312523918,0.34282817,118840.0,118830.0,0.249229]
[1753312524127,0.72545843,118840.0,118830.0,0.249229]
[1753312525228,0.72545843,118840.0,118830.0,0.2408139]
[1753312525551,0.72545843,118840.0,118830.0,0.249229]
[1753312525776,0.80993573,118840.0,118830.0,0.249229]
[1753312526309,0.80993573,118840.0,118830.0,0.2408139]
[1753312526535,0.42730547,118840.0,118830.0,0.23239873]
[1753312526804,0.80993573,118840.0,118830.0,0.23239873]
[1753312527218,0.80993573,118840.0,118830.0,0.2408139]
[1753312528182,0.51594547,118840.0,118830.0,0.2408139]
[1753312528392,0.42730547,118840.0,118830.0,0.2408139]
[1753312528591,0.42730547,118840.0,118830.0,0.249229]
[1753312528839,0.2590114,118840.0,118830.0,0.249229]
[1753312529045,0.26742565,118840.0,118830.0,0.25764395]
[1753312529494,0.26742565,118840.0,118830.0,0.25764352]
[1753312529495,0.26742557,118840.0,118830.0,0.25764352]
[1753312530888,0.19136259,118840.0,118830.0,0.25764352]
[1753312531100,0.18294827,118840.0,118830.0,0.25764352]
[1753312531300,0.19136259,118840.0,118830.0,0.25764352]
[1753312531865,0.18294827,118840.0,118830.0,0.25764352]
[1753312532045,0.19977698,118840.0,118830.0,0.25764352]
[1753312532229,0.20810386,118840.0,118830.0,0.25764352]
[1753312532378,0.29258116,118840.0,118830.0,0.25764352]
[1753312532582,0.28416677,118840.0,118830.0,0.25764352]
[1753312532791,0.19968947,118840.0,118830.0,0.25764352]
[1753312533016,0.20810393,118840.0,118830.0,0.25764352]
[1753312533227,0.19968947,118840.0,118830.0,0.25764352]
[1753312533430,0.20810393,118840.0,118830.0,0.25764352]
[1753312534217,0.38481203,118840.0,118830.0,0.25764352]
[1753312534398,0.78481203,118840.0,118830.0,0.25764352]
[1753312534623,0.86928933,118840.0,118830.0,0.25764352]
[1753312535129,0.8692899,118840.0,118830.0,0.25764352]
[1753312537326,0.86087573,118840.0,118830.0,0.24922864]
[1753312538748,0.88616473,118840.0,118830.0,0.24922864]
[1753312542790,0.03461588,118840.0,118830.0,0.84129764]
[1753312542987,0.001,118840.0,118830.0,1.39668838]
[1753312543190,0.001,118840.0,118830.0,1.73668838]
[1753312543763,0.0029986,118850.0,118840.0,0.33266668]
[1753312544003,0.0029986,118850.0,118840.0,0.80118424]
[1753312544895,0.01143351,118850.0,118840.0,0.80118424]
[1753312545901,0.01143351,118850.0,118840.0,0.80218424]
[1753312548060,0.08723373,118850.0,118840.0,0.30944599]
[1753312548289,0.04164406,118850.0,118840.0,0.43089078]
[1753312548464,0.24172389,118850.0,118840.0,0.43089078]
[1753312549056,0.22489667,118850.0,118840.0,0.43089078]
[1753312550082,0.22489667,118850.0,118840.0,0.04826052]
[1753312550247,0.62489667,118850.0,118840.0,0.43089078]
[1753312550451,0.61648285,118850.0,118840.0,0.04826052]
[1753312551600,0.61648285,118850.0,118840.0,0.001]
[1753312553710,0.99911311,118850.0,118840.0,0.001]
[1753312554149,1.02440211,118850.0,118840.0,0.001]
[1753312554353,0.62440211,118850.0,118840.0,0.001]
[1753312554768,0.57670803,118840.0,118830.0,0.42989078]
[1753312554987,0.17672297,118830.0,118820.0,0.04726052]
[1753312555215,0.19719297,118830.0,118820.0,0.13173782]
[1753312555596,0.19719297,118830.0,118820.0,0.04726052]
[1753312555835,0.21289297,118830.0,118820.0,0.04726052]
[1753312556930,0.21289297,118830.0,118820.0,0.04926052]
[1753312557182,0.29737027,118830.0,118820.0,0.04926052]
[1753312557883,0.29737027,118830.0,118820.0,0.004]
[1753312557884,0.7876269,118830.0,118820.0,0.004]
[1753312558320,0.19358552,118810.0,118800.0,0.44275513]
[1753312558532,0.32691531,118810.0,118800.0,0.27975661]
[1753312558745,0.33533203,118810.0,118800.0,0.62843046]
[1753312558960,0.03021932,118810.0,118800.0,0.63684754]
[1753312559172,0.16699604,118810.0,118800.0,0.63684761]
[1753312559394,0.33533203,118810.0,118800.0,0.63684761]
[1753312559830,0.34374882,118810.0,118800.0,0.63684775]
[1753312560016,0.34374882,118810.0,118800.0,0.64726483]
[1753312560017,0.33533203,118810.0,118800.0,0.64726483]
[1753312560163,0.16699597,118810.0,118800.0,0.64926434]
[1753312560578,0.15016274,118810.0,118800.0,0.64926434]
[1753312560774,0.15016274,118810.0,118800.0,0.66436434]
[1753312560993,0.15016274,118810.0,118800.0,0.34017771]
[1753312561200,0.00295,118810.0,118800.0,0.76491164]
[1753312561435,0.01683111,118820.0,118810.0,0.19357268]
[1753312561646,0.59372487,118820.0,118810.0,0.53382931]
[1753312561839,0.59667487,118820.0,118810.0,0.53382931]
[1753312562048,0.55857705,118820.0,118810.0,0.53382931]
[1753312562471,0.55857705,118820.0,118810.0,0.53482931]
[1753312562695,0.53337,118820.0,118810.0,0.58295983]
[1753312562896,0.4,118820.0,118810.0,0.69963713]
[1753312563143,0.53681545,118820.0,118810.0,0.69963713]
[1753312563346,0.13681545,118820.0,118810.0,0.3593805]
[1753312563548,0.14523097,118820.0,118810.0,0.3593805]
[1753312563764,0.14523097,118820.0,118810.0,0.69963713]
[1753312563967,0.59650425,118830.0,118820.0,0.17673777]
[1753312564167,0.72702425,118830.0,118820.0,0.19203777]
[1753312564511,0.71860923,118830.0,118820.0,0.17673785]
[1753312565160,0.0084158,118820.0,118810.0,0.68845048]
[1753312565371,0.01683153,118820.0,118810.0,0.68932048]
[1753312565565,0.01983153,118820.0,118810.0,0.68932048]
[1753312566110,0.20498496,118820.0,118810.0,0.6893209]
[1753312566324,0.20498496,118820.0,118810.0,0.70715357]
[1753312566805,0.20498496,118820.0,118810.0,0.69873727]
[1753312567037,0.21340098,118820.0,118810.0,0.69873727]
[1753312567249,0.01983111,118820.0,118810.0,0.70715357]
[1753312567455,0.02824691,118820.0,118810.0,0.70715357]
[1753312567708,0.20498468,118820.0,118810.0,0.70715357]
[1753312568346,0.20498468,118820.0,118810.0,0.36689694]
[1753312568569,0.20498468,118820.0,118810.0,0.69873727]
[1753312569006,0.2134007,118820.0,118810.0,0.35006427]
[1753312569220,0.21340134,118820.0,118810.0,0.6903209]
[1753312569408,0.20498525,118820.0,118810.0,0.69873727]
[1753312569624,0.19656923,118820.0,118810.0,0.69873727]
[1753312569854,0.19027329,118820.0,118810.0,0.69873727]
[1753312570081,0.19868931,118820.0,118810.0,0.69873727]
[1753312570279,0.19868931,118820.0,118810.0,0.69032097]
[1753312570486,0.19868931,118820.0,118810.0,0.69873741]
[1753312570747,0.19868931,118820.0,118810.0,0.69032097]
[1753312570951,0.19868923,118820.0,118810.0,0.69032097]
[1753312571196,0.19868959,118820.0,118810.0,0.13273782]
[1753312571411,0.19027379,118820.0,118810.0,0.13273782]
[1753312571618,0.19027379,118820.0,118810.0,0.47299445]
[1753312571842,0.19027379,118820.0,118810.0,0.48141124]
[1753312572054,0.19027379,118820.0,118810.0,0.47299445]
[1753312572500,0.19027379,118820.0,118810.0,0.64974709]
[1753312572707,0.19027379,118820.0,118810.0,0.64133044]
[1753312572871,0.19027379,118820.0,118810.0,0.65816395]
[1753312573433,0.18185785,118820.0,118810.0,0.04826052]
[1753312573660,0.21335785,118820.0,118810.0,0.38851715]
[1753312574075,0.21335785,118820.0,118810.0,0.04826052]
[1753312574750,0.19805785,118820.0,118810.0,0.04826052]
[1753312574990,0.21335785,118820.0,118810.0,0.04826052]
[1753312575411,0.21335785,118820.0,118810.0,0.001]
[1753312576308,0.61335785,118820.0,118810.0,0.001]
[1753312577512,0.69783515,118820.0,118810.0,0.001]
[1753312577918,0.74199785,118820.0,118810.0,0.001]
[1753312580116,0.76729385,118820.0,118810.0,0.001]
[1753312580534,0.76729385,118820.0,118800.0,0.18025786]
[1753312580535,0.20835278,118810.0,118800.0,0.00349052]
[1753312580795,0.21047278,118810.0,118800.0,0.17184068]
[1753312581002,0.21347278,118810.0,118800.0,0.18025818]
[1753312581212,0.22188936,118810.0,118800.0,0.5289321]
[1753312581426,0.20578936,118810.0,118800.0,0.5289321]
[1753312581629,0.31884936,118810.0,118800.0,0.53734925]
[1753312581849,0.31884936,118810.0,118800.0,0.53834925]
[1753312582284,0.31896936,118810.0,118800.0,0.54676633]
[1753312582516,0.31896936,118810.0,118800.0,0.53834925]
[1753312582706,0.19028936,118810.0,118800.0,0.54676633]
[1753312582926,0.31896936,118810.0,118800.0,0.54676633]
[1753312583414,0.31900936,118810.0,118800.0,0.54676633]
[1753312583634,0.15067337,118810.0,118800.0,0.54676633]
[1753312583851,0.15071337,118810.0,118800.0,0.55518334]
[1753312584075,0.1591296,118810.0,118800.0,0.55518334]
[1753312584283,0.02195295,118810.0,118800.0,0.55518334]
[1753312584506,0.15912911,118810.0,118800.0,0.55518334]
[1753312585156,0.16754576,118810.0,118800.0,0.21492671]
[1753312585379,0.16754576,118810.0,118800.0,0.55518334]
[1753312586084,0.15912911,118810.0,118800.0,0.55518334]
[1753312587027,0.15071253,118810.0,118800.0,0.55518334]
[1753312587739,0.15912904,118810.0,118800.0,0.55518334]
[1753312588343,0.15071253,118810.0,118800.0,0.55518334]
[1753312588555,0.14229616,118810.0,118800.0,0.55518334]
[1753312588767,0.12876,118810.0,118800.0,0.60331386]
[1753312588997,0.12876,118810.0,118800.0,0.63571386]
[1753312589225,0.41141545,118820.0,118810.0,0.24084604]
[1753312589434,0.55912663,118820.0,118810.0,0.58110267]
[1753312589638,0.56754236,118820.0,118810.0,0.58110267]
[1753312589871,0.56754285,118820.0,118810.0,0.58110267]
[1753312590298,0.74428077,118820.0,118810.0,0.58110267]
[1753312590521,0.56754285,118820.0,118810.0,0.58110267]
[1753312590731,0.56854285,118820.0,118810.0,0.58110267]
[1753312590945,0.56854278,118820.0,118810.0,0.58110267]
[1753312591175,0.55171118,118820.0,118810.0,0.58110267]
[1753312591386,0.56012698,118820.0,118810.0,0.58110267]
[1753312591583,0.56854292,118820.0,118810.0,0.58110267]
[1753312592015,0.43978292,118820.0,118810.0,0.58110267]
[1753312592228,0.56854292,118820.0,118810.0,0.58110267]
[1753312592934,0.56012698,118820.0,118810.0,0.58110267]
[1753312593151,0.55171118,118820.0,118810.0,0.58110267]
[1753312593365,0.56012698,118820.0,118810.0,0.58110267]
[1753312594064,0.56012691,118820.0,118810.0,0.58110267]
[1753312594299,0.56012691,118820.0,118810.0,0.59730267]
[1753312594718,0.55171118,118820.0,118810.0,0.59730267]
[1753312594979,0.401,118820.0,118810.0,0.69884997]
[1753312595205,0.12972,118820.0,118810.0,0.69884997]
[1753312596554,0.13813545,118820.0,118810.0,0.69884997]
[1753312596770,0.12972,118820.0,118810.0,0.69884997]
[1753312601222,0.13271,118820.0,118810.0,0.35859334]
[1753312601487,0.14112552,118820.0,118810.0,0.69884997]
[1753312601694,0.13271,118820.0,118810.0,0.69884997]
[1753312602025,0.14112552,118820.0,118810.0,0.69884997]
[1753312602210,0.13271,118820.0,118810.0,0.69884997]
[1753312602421,0.14954104,118820.0,118810.0,0.69884997]
[1753312602626,0.14112545,118820.0,118810.0,0.69884997]
[1753312603176,0.13271,118820.0,118810.0,0.69884997]
[1753312604018,0.14112545,118820.0,118810.0,0.69884997]
[1753312604225,0.13271,118820.0,118810.0,0.69884997]
[1753312604642,0.14112552,118820.0,118810.0,0.69884997]
[1753312605470,0.13271,118820.0,118810.0,0.69884997]
[1753312605700,0.14112552,118820.0,118810.0,0.35859334]
[1753312605910,0.14112552,118820.0,118810.0,0.69884997]
[1753312606709,0.14954111,118820.0,118810.0,0.69884997]
[1753312606926,0.15154111,118820.0,118810.0,0.69884997]
[1753312607543,0.14312552,118820.0,118810.0,0.69884997]
[1753312608747,0.15154118,118820.0,118810.0,0.69884997]
[1753312609219,0.15154118,118820.0,118810.0,0.66644997]
[1753312610035,0.15995698,118820.0,118810.0,0.66644997]
[1753312610758,0.15995698,118820.0,118810.0,0.66557997]
[1753312610958,0.15154118,118820.0,118810.0,0.66557997]
[1753312611167,0.15995698,118820.0,118810.0,0.66557997]
[1753312611381,0.15154118,118820.0,118810.0,0.66557997]
[1753312611581,0.14312552,118820.0,118810.0,0.66557997]
[1753312611804,0.15154118,118820.0,118810.0,0.66557997]
[1753312612311,0.15995698,118820.0,118810.0,0.66557997]
[1753312612997,0.15154118,118820.0,118810.0,0.66557997]
[1753312614040,0.15154118,118820.0,118810.0,0.66644997]
[1753312614626,0.15995698,118820.0,118810.0,0.66644997]
[1753312614992,0.15995691,118820.0,118810.0,0.66644997]
[1753312615195,0.15995691,118820.0,118810.0,0.70898018]
[1753312615396,0.15154118,118820.0,118810.0,0.70898018]
[1753312616816,0.15995691,118820.0,118810.0,0.70898018]
[1753312617162,0.16837278,118820.0,118810.0,0.70898018]
[1753312617592,0.15995691,118820.0,118810.0,0.70898018]
[1753312617992,0.16837278,118820.0,118810.0,0.70898018]
[1753312618407,0.15995691,118820.0,118810.0,0.74028018]
[1753312620324,0.12956,118820.0,118810.0,0.74088018]
[1753312621031,0.001,118820.0,118810.0,0.74088018]
[1753312621247,0.12956,118820.0,118810.0,0.74088018]
[1753312621513,0.12956,118820.0,118810.0,0.78470066]
[1753312622898,0.1296,118820.0,118810.0,0.78470066]
[1753312623357,0.001,118820.0,118810.0,1.1674875]
[1753312623591,0.1296,118820.0,118810.0,0.78470066]
[1753312624522,0.1286,118820.0,118810.0,0.78470066]
[1753312624723,0.1286,118820.0,118810.0,0.78670066]
[1753312626768,0.1286,118820.0,118810.0,0.78870066]
[1753312633915,0.00299,118830.0,118820.0,0.27322976]
[1753312634134,0.4314,118840.0,118830.0,0.24081347]
[1753312634135,0.40301,118840.0,118830.0,0.24081347]
[1753312634349,0.53161,118840.0,118830.0,1.00725715]
[1753312634566,0.5337,118840.0,118830.0,1.00725715]
[1753312634786,0.53161,118840.0,118830.0,1.00725715]
[1753312635435,0.53261,118840.0,118830.0,1.00725715]
[1753312636379,0.5347,118840.0,118830.0,1.00725715]
[1753312636598,0.5515282,118840.0,118830.0,1.00638715]
[1753312637107,0.5515282,118840.0,118830.0,0.24081347]
[1753312637319,0.5515282,118840.0,118830.0,1.00638715]
[1753312637871,0.54311403,118840.0,118830.0,1.00638715]
[1753312639003,0.55994245,118840.0,118830.0,1.00638715]
[1753312639211,0.56835691,118840.0,118830.0,0.24081347]
[1753312639677,0.56835691,118840.0,118830.0,1.00638715]
[1753312641365,0.55994245,118840.0,118830.0,1.00638715]
[1753312644199,0.56835691,118840.0,118830.0,0.24081347]
[1753312644402,0.56835691,118840.0,118830.0,1.00638715]
[1753312645136,0.56835684,118840.0,118830.0,1.00638715]
[1753312647748,0.5767713,118840.0,118830.0,0.24081347]
[1753312647951,0.5767713,118840.0,118830.0,1.00638715]
[1753312648165,0.5767718,118840.0,118830.0,1.00638715]
[1753312648370,0.56835727,118840.0,118830.0,1.00638715]
[1753312648880,0.55152842,118840.0,118830.0,1.00638715]
[1753312649620,0.54311403,118840.0,118830.0,1.00638715]
[1753312650211,0.5515282,118840.0,118830.0,1.00638715]
[1753312650797,0.55994252,118840.0,118830.0,1.00638715]
[1753312652509,0.5515282,118840.0,118830.0,1.00638715]
[1753312653440,0.55994252,118840.0,118830.0,1.00638715]
[1753312653864,0.5515282,118840.0,118830.0,1.00638715]
[1753312655790,0.5515282,118840.0,118830.0,0.24081347]
[1753312656009,0.5515282,118840.0,118830.0,1.00638715]
[1753312656216,0.55994252,118840.0,118830.0,1.00638715]
[1753312656427,0.5515282,118840.0,118830.0,1.00638715]
[1753312656663,0.55994259,118840.0,118830.0,1.00638715]
[1753312657188,0.5515282,118840.0,118830.0,1.00638715]
[1753312657391,0.55994259,118840.0,118830.0,0.62360031]
[1753312657672,0.56835712,118840.0,118830.0,0.62360031]
[1753312657880,0.55994259,118840.0,118830.0,0.62360031]
[1753312660998,0.56835705,118840.0,118830.0,0.62360031]
[1753312661232,0.55994259,118840.0,118830.0,0.62360031]
[1753312663204,0.56835712,118840.0,118830.0,0.62360031]
[1753312664500,0.73665126,118840.0,118830.0,0.60677033]
[1753312664750,0.73665126,118840.0,118820.0,0.36071152]
[1753312664751,0.03365995,118830.0,118820.0,0.36071152]
[1753312665001,0.06776981,118830.0,118820.0,0.74349836]